Cogmind - Beta 14 @@@ ROGUE MODE // 2024.10.07 @ 12:34:21 Player: anastasia Result: Destroyed by S-10 Pest with Light Assault Rifle Performance ------------- Evolutions (1) 500 Regions Visited (3) 600 Robots Destroyed (26) 130 Value Destroyed (745) 745 Prototype IDs (2) 40 Alien Tech Used (0) 0 Bonus (0) 0 TOTAL SCORE: 2015 Bonus ------- None Cogmind --------- Core Integrity 0/400 Matter 30/300 Energy 100/100 System Corruption 8% Temperature Cool (0) Movement Core (100) Ox1 Location -9/Materials Parts ------- > --- POWER (1) -------- (None) > --- PROPULSION (2) --- (None) > --- UTILITY (4) ------ Small Storage Unit > --- WEAPON (2) ------- (None) > --- INVENTORY (8) ---- Aluminum Leg Experimental Sensor Array Peak State ------------ > --- POWER ------------ Light Nuclear Core > --- PROPULSION ------- Light Treads Light Treads > --- UTILITY ---------- Bomb Drone Bay > --- WEAPON ----------- Particle Gun Light Cannon > --- INVENTORY -------- Ion Engine Aluminum Leg Experimental Sensor Array Light Cannon Grenade Launcher [Rating: 23] Favorites ----------- Power Light Nuclear Core Engine Ion Engine Power Core Light Nuclear Core Propulsion Light Treads Treads Light Treads Leg Aluminum Leg Wheel Wheel Utility Small Storage Unit Device Heat Sink Storage Small Storage Unit Hackware Hacking Suite Weapon Light Cannon Energy Gun Particle Gun Ballistic Gun Assault Rifle Ballistic Cannon Light Cannon Launcher Grenade Launcher Build | -11 -10 -10 -9 ------- Run | Yrd Mat Min Mat Slots Evolved 2 | . . . 2 Power . | . . . . Propulsion . | . . . . Utility 2 | . . . 2 Weapon . | . . . . Parts Attached 38 | 7 5 11 15 Power 3 | 1 . 1 1 Engine 2 | 1 . . 1 Core 1 | . . 1 . Reactor . | . . . . Propulsion 8 | 2 . 2 4 Treads 2 | 2 . . . Leg 4 | . . . 4 Wheel 2 | . . 2 . Hover . | . . . . Flight . | . . . . Utility 13 | 1 1 6 5 Device 10 | . 1 5 4 Storage 2 | 1 . 1 . Processor . | . . . . Hackware 1 | . . . 1 Protection . | . . . . Artifact . | . . . . Weapon 14 | 3 4 2 5 Energy Gun 4 | 3 1 . . Energy Cannon . | . . . . Ballistic Gun 3 | . 1 . 2 Ballistic Cannon 6 | . 2 1 3 Launcher 1 | . . 1 . Special Weapon . | . . . . Impact Weapon . | . . . . Slashing Weapon . | . . . . Piercing Weapon . | . . . . Special Melee Weapon . | . . . . Unidentified Prototypes 2 | . . 2 . Parts Lost 16 | . 1 1 14 Power 2 | . . . 2 Propulsion 2 | . . . 2 Utility 5 | . . . 5 Weapon 7 | . 1 1 5 Highest Loss Streak 8 | . 1 1 8 To Critical Strikes . | . . . . Average Slot Usage (%) 86 | . 94 87 78 Engine 5 | . 14 2 5 Core 6 | . . 11 3 Treads 14 | . 28 16 . Leg 4 | . . . 17 Wheel 6 | . . 11 1 Device 13 | . 9 13 16 Storage 7 | . 14 3 11 Energy Gun 10 | . 11 14 3 Ballistic Gun 2 | . 6 . 1 Ballistic Cannon 9 | . 9 7 14 Launcher 3 | . . 6 . Peak Build Rating 23 | 6 8 23 19 Average Rating 13 | 4 7 19 11 On Entrance 6 | . 6 8 11 Naked Turns . | . . . . Heaviest Build 19 | 14 17 19 19 Greatest Support 40 | 40 40 40 26 Greatest Overweight (x) 6 | . . 6 3 Average Overweight (x) . | . . . . Largest Inventory Capacity 8 | 8 8 8 8 Average Capacity 6 | 6 8 5 8 Most Carried 8 | . 7 8 7 Average Carried 4 | . 4 5 3 Final Capacity 8 | 8 8 8 8 Final Carried 7 | . 7 6 2 Class Distribution -------------------- 60% | Mutant 39% | Scavenger-Mutant Dominant Class ---------------- Mutant | -10/Materials Mutant | -10/Mines Scavenger-Mutant | -9/Materials Resources | -11 -10 -10 -9 ----------- Run | Yrd Mat Min Mat Matter Collected 828 | 270 178 194 186 Remotely . | . . . . Salvage Created 584 | . 225 8 351 Parts 51 | . 16 3 32 Haulers Intercepted . | . . . . Recyclers Shooed 1 | . . . 1 Parts Field Recycled . | . . . . Retrieved Matter . | . . . . Parts Self-Destructed . | . . . . Prevented . | . . . . Kills | -11 -10 -10 -9 ------- Run | Yrd Mat Min Mat Combat Hostiles Destroyed 23 | . 7 3 13 Guns 4 | . 1 1 2 Cannons 18 | . 6 1 11 AOE 1 | . . 1 . Classes Destroyed 5 | . 2 1 2 Tunneler 1 | . . . 1 Operator 2 | . 1 . 1 Swarmer 6 | . . 3 3 Grunt 16 | . 7 . 9 Brawler 1 | . . . 1 Best Kill Streak 3 | . 3 3 3 Combat Bots Only 3 | . 3 3 3 Max Kills in Single Turn 1 | . 1 1 1 Gunslinging . | . . . . Exploded 1 | . . 1 . Melee . | . . . . Uniques/NPCs Destroyed . | . . . . Combat | -11 -10 -10 -9 -------- Run | Yrd Mat Min Mat Hostile Shots Fired 300 | . 68 32 200 Missed 82 | . 20 10 52 Damage Taken 2273 | . 555 246 1472 Core 482 | . 48 28 406 Absorbed by Shields . | . . . . Core Remaining (%) 84 | 100 . 69 . Volleys Fired 93 | . 35 7 51 Largest 2 | . 2 2 2 Hottest 100 | . 100 100 100 Shots Fired 181 | . 70 13 98 Gun 77 | . 41 7 29 Cannon 102 | . 29 4 69 Launcher 2 | . . 2 . Special . | . . . . Kinetic 148 | . 59 4 85 Thermal 25 | . 5 7 13 Explosive 2 | . . 2 . Electromagnetic 6 | . 6 . . Robot Hit Streak 13 | . 13 2 6 Robot Miss Streak 7 | . 3 3 7 Penetration Max . | . . . . Secondary Targets . | . . . . Shots Hit Robots 106 | . 46 5 55 Core Hits 34 | . 12 3 19 Critical Kills . | . . . . Critical Parts Destroyed 1 | . . . 1 Critical Strikes 5 | . 1 . 4 Burn 1 | . 1 . . Destroy 1 | . . . 1 Blast 3 | . . . 3 Melee Attacks . | . . . . Impact . | . . . . Slashing . | . . . . Piercing . | . . . . Sneak Attacks . | . . . . Combat Hostiles . | . . . . Follow-up Attacks . | . . . . Damage Inflicted 1891 | . 740 202 949 Guns 760 | . 406 44 310 Cannons 968 | . 296 37 635 Explosions 159 | . 38 121 . Melee . | . . . . Ramming 4 | . . . 4 Kinetic 1438 | . 578 37 823 Thermal 280 | . 114 44 122 Explosive 121 | . . 121 . Electromagnetic 48 | . 48 . . Impact . | . . . . Slashing . | . . . . Piercing . | . . . . Highest Corruption 8 | . . . 8 Average Corruption 7 | . . . 7 Corruption Purged . | . . . . Corruption Blocked . | . . . . Effects 15 | . . . 15 Message Errors 4 | . . . 4 Matter Fused 4 | . . . 4 Heat Flow Errors 2 | . . . 2 Energy Discharges 2 | . . . 2 Parts Fused 1 | . . . 1 Data Loss (minor) 1 | . . . 1 Alerts 1 | . . . 1 Overload Shots . | . . . . Overflow Damage 56 | . 8 21 27 Projectiles 27 | . . . 27 Explosions 29 | . 8 21 . Melee . | . . . . Knockbacks 17 | . 8 1 8 Impact . | . . . . Kinetic 17 | . 8 1 8 Secondary . | . . . . Self-Inflicted Damage 38 | . 13 24 1 Shots 2 | . 1 1 . Rammed 2 | . . . 2 Targets Rammed 3 | . . . 3 Kicked 1 | . . . 1 Crushed . | . . . . Highest Temperature 379 | . 38 60 379 Average Temperature 77 | . 17 24 134 Received Heat Transfer 573 | . 288 . 285 Effects 1 | . . . 1 Short Circuit 1 | . . . 1 Siege Activations . | . . . . Robots Corrupted . | . . . . Combat Hostiles . | . . . . Parts Fried . | . . . . Impact Corruptions . | . . . . Robots Melted . | . . . . Combat Hostiles . | . . . . Parts Melted . | . . . . Heat Transferred 716 | . 309 111 296 Parts Sabotaged . | . . . . Parts Stolen . | . . . . Parts Stripped . | . . . . Power Chain Reactions 1 | . 1 . . Alert | -11 -10 -10 -9 ------- Run | Yrd Mat Min Mat Peak Influence 287 | . 191 70 287 Initial 27 | . . 2 27 Average 64 | . 89 3 163 Maximum Alert Level 1 | . . . 1 Low Security (%) 90 | 100 100 100 62 Level 1 9 | . . . 37 Level 2 . | . . . . Level 3 . | . . . . Level 4 . | . . . . Level 5 . | . . . . High Security . | . . . . Max Security . | . . . . Squads Dispatched 2 | . 2 . . Investigation 1 | . 1 . . Extermination . | . . . . Reinforcement 1 | . 1 . . Assault . | . . . . Garrison . | . . . . Intercept . | . . . . Searches Triggered . | . . . . Construction Impeded . | . . . . Haulers Reinforced . | . . . . Active Scanning Responses . | . . . . Cargo Convoy Interrupts . | . . . . Stealth | -11 -10 -10 -9 --------- Run | Yrd Mat Min Mat Distress Signals 2 | . . . 2 Communications Jammed . | . . . . Distress Signals . | . . . . Times Spotted 39 | . 9 6 24 Peak Tracking Total 7 | . 3 3 7 Tactical Retreats 3 | . . . 3 Traps | -11 -10 -10 -9 ------- Run | Yrd Mat Min Mat Traps Triggered 1 | . 1 . . Indirectly . | . . . . Trap Hack Attempts . | . . . . Triggered . | . . . . Disarmed . | . . . . Reprogrammed . | . . . . Reused . | . . . . Traps Extracted . | . . . . Installed . | . . . . Triggered . | . . . . Machines | -11 -10 -10 -9 ---------- Run | Yrd Mat Min Mat Machines Disabled 4 | . 1 . 3 Max in Single Turn 1 | . 1 . 1 Machines Repaired . | . . . . Machines Dismantled . | . . . . Machines Sabotaged . | . . . . Overloaded Fab Kills . | . . . . Hacking | -11 -10 -10 -9 --------- Run | Yrd Mat Min Mat Machines Accessed 7 | . 1 1 5 Terminals 5 | . 1 . 4 Fabricators . | . . . . Repair Stations . | . . . . Recycling Units . | . . . . Scanalyzers 1 | . . . 1 Garrison Access . | . . . . Total Hacks 12 | . 2 1 9 Successful 7 | . 1 1 5 Failed 5 | . 1 . 4 Catastrophic 1 | . 1 . . Database Lockouts . | . . . . Manual 1 | . . . 1 Terminals 10 | . 2 . 8 Fabricators . | . . . . Repair Stations . | . . . . Recycling Units . | . . . . Scanalyzers 1 | . . . 1 Garrison Access . | . . . . Terminal Hacks 6 | . 1 1 4 Open Door 1 | . . 1 . Branch Access Points 1 | . 1 . . Emergency Access Points 1 | . . . 1 Alert Level 1 | . . . 1 Locate Traps 1 | . . . 1 Zone Layout 1 | . . . 1 Fabricator Hacks . | . . . . Repair Station Hacks . | . . . . Recycling Unit Hacks . | . . . . Scanalyzer 1 | . . . 1 Insert Component 1 | . . . 1 Garrison Access Hacks . | . . . . Unauthorized Hacks . | . . . . Terminals . | . . . . Fabricators . | . . . . Repair Stations . | . . . . Recycling Units . | . . . . Scanalyzers . | . . . . Garrison Access . | . . . . Data Cores Recovered 1 | . . . 1 Used 1 | . . . 1 Hacking Detections 4 | . . . 4 Full Trace Events 1 | . . . 1 Feedback Events . | . . . . Feedback Blocked . | . . . . Robot Schematics Acquired . | . . . . Robots Built . | . . . . Authchips . | . . . . Time . | . . . . Total Robot Build Rating . | . . . . Part Schematics Acquired . | . . . . Parts Built . | . . . . Authchips . | . . . . Time . | . . . . Total Part Build Rating . | . . . . Parts Repaired . | . . . . Time . | . . . . Parts Recycled . | . . . . Recycled Matter . | . . . . Retrieved Matter . | . . . . Retrieved Components . | . . . . Parts Scanalyzed . | . . . . Part Schematics Acquired . | . . . . Parts Damaged . | . . . . Bothacking | -11 -10 -10 -9 ------------ Run | Yrd Mat Min Mat Used RIF Installer . | . . . . Robots Hacked . | . . . . Non-combat . | . . . . Combat . | . . . . Robot Hacks Applied . | . . . . Relay Couplers Released . | . . . . Fabnet Peak Effective % . | . . . . Robots Rewired . | . . . . Allies Hacked . | . . . . Hacks Repelled . | . . . . Allies | -11 -10 -10 -9 -------- Run | Yrd Mat Min Mat Total Allies . | . . . . Largest Group . | . . . . Highest-Rated Group . | . . . . Highest-Rated Ally . | . . . . Total Orders 1 | . . 1 . RETURN 1 | . . 1 . Ally Attacks 8 | . . 8 . Total Damage . | . . . . Kills . | . . . . Allies Corrupted . | . . . . Allies Melted . | . . . . Intel | -11 -10 -10 -9 ------- Run | Yrd Mat Min Mat Robot Analysis Total . | . . . . Derelict Logs Recovered 3 | . . 3 . Drone Launches 16 | . . 16 . Drone Recoveries 7 | . . 7 . Exploration | -11 -10 -10 -9 ------------- Run | Yrd Mat Min Mat Turns Passed 1998 | 67 461 955 515 Spaces Moved 1177 | 39 179 704 255 Core 43 | 5 . 3 35 Treads 549 | 34 179 336 . Legs 194 | . . . 194 Wheels 391 | . . 365 26 Hover . | . . . . Flight . | . . . . Fastest Speed 50 | 50 160 90 90 Average Speed 129 | 145 160 124 119 Slowest Speed 350 | 160 160 350 200 Overloaded Moves . | . . . . Propulsion Burnouts . | . . . . Robots Hopped . | . . . . Cave-ins Triggered . | . . . . Exploration Rate (%) 38 | 5 23 98 27 Regions Visited 3 Branch Regions 1 Pre-discovered Areas 1 | . . 1 . Known Exits Taken 2 | . 1 1 . Unknown Exits Taken 1 | 1 . . . Scrap Searched 3 | . . 3 . Spaces Dug . | . . . . Terrain Destroyed 12 | . 2 10 . Melee . | . . . . Projectile . | . . . . AOE 12 | . 2 10 . Terrain Rammed . | . . . . Walls Destroyed . | . . . . Machines Disabled . | . . . . Actions | -11 -10 -10 -9 --------- Run | Yrd Mat Min Mat Total 1468 | 46 284 771 367 Wait 84 | . 52 6 26 Move 1174 | 38 178 703 255 Hop . | . . . . Pick Up 28 | . 11 7 10 Fast Attach 13 | 7 1 5 . Attach 18 | . 3 3 12 Detach 2 | . . 1 1 Swap 7 | . 1 3 3 Drop 19 | 1 3 9 6 Fire 93 | . 35 7 51 Melee . | . . . . Ram 2 | . . . 2 Kick 1 | . . . 1 Crush . | . . . . Escape Stasis . | . . . . Rewire 27 | . . 27 . Trap . | . . . . Miscellaneous . | . . . . Route ------- -11/Scrapyard -10/Materials (discovered 3 exits: *Mat / *Min x2) -10/Mines (discovered 2 exits: *Mat x2) -9/Materials History --------- Turn | Location | Event 34 | -11/Scrapyard | Discovered new exit (range 16) 68 | -11/Scrapyard | Entered Materials 304 | -10/Materials | Build established: Mutant 381 | -10/Materials | Discovered new exit (range 4) 443 | -10/Materials | Discovered new exit (range 16) 473 | -10/Materials | Identified exit to Mines 529 | -10/Materials | Entered Mines 534 | -10/Mines | Found the Drone Emporium 541 | -10/Mines | Identified exit to Materials 544 | -10/Mines | Found Prototype Device 546 | -10/Mines | Identified Bomb Drone Bay 601 | -10/Mines | Learned Materials terminal intel 692 | -10/Mines | Found a damaged Exp. Sensor Array with a note attached 700 | -10/Mines | Found Prototype Device 750 | -10/Mines | Discovered exit to Materials (range 18) 798 | -10/Mines | Learned location of Storage (-9) 928 | -10/Mines | Learned Materials terminal intel 950 | -10/Mines | Assembled infested the area 1008 | -10/Mines | Lost 5 allies 1389 | -10/Mines | Build established: Scavenger-Mutant 1481 | -10/Mines | Identified Exp. Sensor Array 1484 | -10/Mines | Entered Materials 1484 | -9/Materials | Evolved 2 slots: Utility x2 1485 | -9/Materials | Loaded intel: 12 terminal locations 1664 | -9/Materials | Lost 4 parts (3u1w) 1865 | -9/Materials | Core integrity fell below 50% 1976 | -9/Materials | Core integrity fell below 20% 1999 | -9/Materials | Destroyed by S-10 Pest with Light Assault Rifle Last Messages --------------- 01954_ K-01 Serf cleans the Terminal. 01958_ Heat Sink destroyed. 01960_ K-01 Serf collects debris. 01968_ S-10 Pest destroyed. 01969_ K-01 Serf collects debris. 01969_ Slammed into S-10 Pest. 01969_ Lgt. Cannon destroyed. 01971_ Slammed into S-10 Pest. 01972_ K-01 Serf collects debris. 01974_ R-06 Scavenger collects Flight Unit. 01975_ K-01 Serf cleans the Atomic Centrifuge. 01976_ K-01 Serf collects debris. 01977_ R-06 Scavenger collects Lgt. Ion Engine. 01978_ R-06 Scavenger collects Flight Unit. 01980_ K-01 Serf collects debris. 01982_ Lgt. Assault Rifle destroyed. 01983_ K-01 Serf collects debris. 01984_ Imp. Heat Sink destroyed. 01987_ K-01 Serf collects debris. 01996_ Acquired 1 matter. Map ----- +----------------------------------------------------+ | ????????????????????????????????? | | ????????????????????????????????? | | ????????????????????????????????? | | ????????????????????????????????? | | ????????????????????????????????? | | ????????????????????????????????? | | ????????????????????????????????? | | ????????????????????????????????? | | ????????????????????????????????? | | ????????????????????????????????? | | ????????????????????????????????? | | ?????????##?????????????????????? | | ????????# ?????????????????????? | | ???????? ?????????????????????? | | ????????# ?????????????????????? | | ????????# ""????#???????????????? | | ????????# """"" ################? | | ????????# """"" ## =! #? | | ????????# ## """ =! #? | | ######??# """"" ## """ ! #? | | ? ??# """"" ## """ # | | ? " ?# """"" ## "T" # | | ? """ ?# ## """ # | | # """ #s##+###########+####### | | # """ # s % | | # "" @ s a | | # """ # kk " | | # "" # ########### " | | #[ """ ?# #?????????# """ | | ? " ?# #?????????# | | ? ??# +^????????# | | ######??# #?????????# "" [[! | | ????????# #?????????# """ [! | | ????????# #?????????# """ [! | | ????????# #?????????# | | ????????# #?????????# | | ?#""" # ########??# """ " % | | ?#""" + ## !#### """ T | | ?#""" # ## """ " | | ?# # ## | | ?# # ## | | ?######## ## #####/######## | | ????????# ### ## # | | ????????# #?# ## """ +% | | ????????# #?# ## """"" # | | ????????# #?# ## "S """"" # | | ????????# #?# ## """ """"" # | | ????????# #?# ## "" """ ## | | ????????# ### ## #? | | ???###### ## %####+########? | +----------------------------------------------------+ Best States ------------- Heat Dissipation 52 Energy Generation 14 Energy Capacity 250 Matter Stores 300 Matter Capacity 300 Sight Range 16 Robot Scan Range 20 Terrain Scan Density 10 Evasion (%) 55 Recoil Reduction 2 Offensive Hacking 10 Item Schematics ----------------- None Robot Schematics ------------------ None Fabricated ------------ Nothing Alien Tech Used ----------------- None Achievements -------------- None Challenges ------------ None Game ------ Seed ShadingTargetingAmplifier Manual? 0 Play Time 00:21:27 Cumulative 10.8 hours Start 2024.10.07 @ 12:15:11 End 2024.10.07 @ 12:34:21 Sessions 1 Manual Loads 0 Difficulty Rogue Special Mode None Game No. 19 Rogue 11 Adventurer 8 Explorer 0 Win Type - Total 0 Types 0/0/0/0/0/0/0/0/0 Lore% 5 Gallery% 18 Achievement% 17 Wizard Run 0 Options --------- Layout 1 ASCII 0 Keyboard 0 Movement Mouse Keybinds 0 Fullscreen 1 Font 32/SmallcapsGlow Map View 50x35 Zoom Use 0% Tactical HUD 1 Map Filters NONE Filters NONE Steam 1 RUN: 91616f16-4d80-42f8-9dd9-54d79aadca29